{"text_format":"2","workbook":"xlsx","n_sheets":2,"sheets":["Invulformulier","Energietarieven"],"not_rendered":{"charts":0,"images":1,"macros":0,"external_links":0,"defined_names":1,"comments":2,"pivot_tables":0},"unopened":[],"bounds":{"document_bytes":16777216,"sheet_cells":100000,"run_cost":"one","rows_first":2000,"rows_last":500,"rows_between":2000,"halvings":0,"cell_chars":16384,"cell_head_chars":4096},"cells_cut":0,"cells_raw":0,"read":"whole","date_system":"1900"}

{"sheet":"Invulformulier","index":0,"n_rows":31,"n_cols":7,"rows_kept":31,"cut":false,"hidden":false,"merged":[[0,1,2,5],[23,1,24,1],[28,1,29,2],[28,3,29,4],[30,3,31,4],[30,1,31,2]]}
[null,"Hoe snel verdien je een hybride warmtepomp terug?"]
[]
[]
[]
[null,null,"Jouw gegevens","Vul de vier gele velden in"]
[null,"Energietarieven","Vul zelf je tarief in","Vul zelf een tarief in, of kies met het dropdown menu een referentiejaar."]
[null,"Prijs per m3",1.74,"!!! Er wordt alleen met deze prijs gerekend als 'energietarieven' staat op 'vul zelf je tarief in'."]
[null,"Prijs per kWh",0.4,"!!! Er wordt alleen met deze prijs gerekend als 'energietarieven' staat op 'vul zelf je tarief in'."]
[null,"Prijs warmtepomp in €",2700,"Vul de prijs (inclusief installatie) in waar de subsidie die je krijgt al vanaf getrokken is."]
[null,"Huidig jaarverbruik gas in m3",1169,"Je vindt dit op de jaarafrekening of in de app van je energieleverancier."]
[null,"Huidig jaarverbruik stroom in kWh",2479,"Je vindt dit op de jaarafrekening of in de app van je energieleverancier."]
[]
[null,null,"Aannames verbruik","We gaan hier uit van gemiddelden. Pas de blauwe velden alleen aan als je meer weet over jouw situatie."]
[null,"SCOP hybride",3.8,"Het geschatte jaarrendement van de warmtepomp. 3,8 betekent dat 1kWh stroom 3,8kWh warmte oplevert."]
[null,"Aandeel warmtepomp voor ruimteverwarming",0.6,"Het geschatte deel van de verwarming dat de warmtepomp doet voordat de cv-ketel moet bijspringen."]
[null,"Hoeveelheid gas voor tapwater en koken in m3",240,"De hoeveelheid gas die je gebruikt voor andere dingen dan ruimtes verwarmen."]
[]
[null,null,"Pas onderstaande velden niet aan, dit gaat automatisch!"]
[null,null,null,"Verbruik",null,"Energiekosten","De vaste kosten voor je aansluiting zitten hier niet bij. Deze zijn bij een cv-ketel en een hybride warmtepomp hetzelfde."]
[null,"Huidig verbruik","Gas",{"$f":"C10","v":1169},"m3 gas",{"$f":"$D$20*(HLOOKUP($C$6,Energietarieven!$C$2:$F$6,5,FALSE))","v":2034.06}]
[null,null,"Stroom",{"$f":"C11","v":2479},"kWh",{"$f":"D21*(HLOOKUP($C$6,Energietarieven!$C$2:$F$11,10,FALSE))","v":991.6}]
[null,null,"Totaal",null,null,{"$f":"SUM(F20:F21)","v":3025.66}]
[]
[null,"Verbruik cv-ketel + hybride warmtepomp","Gas",{"$f":"C16+((1-C15)*(D20-C16))","v":611.6},"m3 gas",{"$f":"$D$24*(HLOOKUP($C$6,Energietarieven!$C$2:$F$6,5,FALSE))","v":1064.184}]
[null,null,"Stroom",{"$f":"((D20-C16)*C15)*Energietarieven!C13/C14+D21","v":3901.8368421052633},"kWh",{"$f":"$D$25*(HLOOKUP($C$6,Energietarieven!$C$2:$F$11,10,FALSE))","v":1560.7347368421053}]
[null,null,"Totaal",null,null,{"$f":"SUM(F24:F25)","v":2624.9187368421053}]
[]
[]
[null,"Besparing in energiekosten per jaar ten opzichte van een cv-ketel",null,{"$f":"F22-F26","v":400.74126315789454}]
[]
[null,"Terugverdientijd hybride warmtepomp",null,{"$f":"$C$9/D29","v":6.7375143221430216}]

{"sheet":"Energietarieven","index":1,"n_rows":13,"n_cols":6,"rows_kept":13,"cut":false,"hidden":false,"merged":[]}
[]
[null,"Variabele Tarieven",2020,2021,2022,"Vul zelf je tarief in"]
[null,"Variabel gas",0.28399999999999997,0.41499999999999998,1.1956,{"$f":"F6-F5-F4","v":1.1958299999999999}]
[null,"ODE Gas",9.3780000000000002E-2,0.10297000000000001,0.10467,0.10467]
[null,"Energiebelasting",0.40300999999999998,0.42176000000000002,0.4395,0.4395]
[null,"Totaal incl btw",{"$f":"SUM(C3:C5)","v":0.78078999999999998},0.94,{"$f":"SUM(E3:E5)","v":1.73977},{"$f":"Invulformulier!C7","v":1.74}]
[]
[null,"Variabel Elektriciteitskosten",7.0699999999999999E-2,0.10580000000000001,0.31690000000000002,{"$f":"F11-F10-F9","v":0.31857000000000002}]
[null,"ODE Elektriciteit",3.3029999999999997E-2,3.6299999999999999E-2,3.6909999999999998E-2,3.6909999999999998E-2]
[null,"Energiebelasting",0.11822000000000001,0.11408,4.4519999999999997E-2,4.4519999999999997E-2]
[null,"Totaal incl btw",{"$f":"SUM(C8:C10)","v":0.22194999999999998},0.26,{"$f":"SUM(E8:E10)","v":0.39833000000000002},{"$f":"Invulformulier!C8","v":0.4}]
[]
[null,"kWh/m3 gas",9.6999999999999993]